[Event "Charlotte Summer IM D 2022"]
[Site "Charlotte"]
[Date "2022.07.25"]
[Round "1.1"]
[White "Chasin, Nico"]
[Black "Bacus, Dharim"]
[Result "1-0"]
[ECO "D38"]
[WhiteElo "2285"]
[BlackElo "2227"]
[Annotator "TA"]
[PlyCount "52"]
[EventDate "2022.07.24"]
[EventType "tourn"]
[EventCountry "USA"]
[SourceTitle "playchess.com"]
[Source "ChessBase"]
[SourceQuality "1"]
[TimeControl "5400+30"]

{[%evp 18,52,0,8,21,29,54,53,77,69,85,81,82,22,83,89,87,86,92,57,39,35,37,64,194,188,273,277,268,264,238,265,260,252,670,620,559]} 1. d4 {[%emt 0:04:35]} Nf6 {[%emt 0:00:12]} 2. c4 {[%emt 0:00:06]} e6 {[%emt 0:00:10]} 3. Nf3 {[%emt 0:00:07]} d5 {[%emt 0:00:13]} 4. Nc3 {[%emt 0:00:11]} Bb4 {[%emt 0:00:19]} 5. Bg5 {[%emt 0:00:12]} h6 {[%emt 0:01:41]} 6. Bxf6 {[%emt 0:00:59]} Qxf6 {[%emt 0:00:06]} 7. Qa4+ {[%emt 0:00:08]} Nc6 {[%emt 0:00:13]} 8. cxd5 {[%emt 0:00:22]} exd5 {[%emt 0:00:30]} 9. e3 {[%emt 0:00:11]} O-O {[%emt 0:11:57]} 10. Be2 Qg6 {[%emt 1:20:09] D38: Queen's Gambit Declined: Ragozin Defence (4 Nf3 Bb4).} 11. O-O {[%emt 1:29:09]} Bxc3 {[%emt 0:00:00]} 12. bxc3 {[%emt 0:00:30]} a6 {[%emt 0:00:00] White is slightly better.} 13. c4 {[#]} dxc4 $146 {[%emt 0:00:00]} ({Predecessor:} 13... Bh3 14. Ne1 Rfd8 15. Rc1 dxc4 16. Qxc4 Be6 17. Qc2 Qxc2 18. Rxc2 Rac8 19. Nd3 Bf5 {1-0 (53) Cosma,I (2435)-Zemerov,V (2420) Hungary 1995}) 14. Qxc4 Bg4 {[%emt 0:02:00]} 15. Rab1 {[%emt 0:00:00]} (15. Rfc1 $16) 15... Rfd8 {[%emt 0:00:00]} (15... Bh3 $1 $11 16. Nh4 Qg5) 16. Rfc1 $16 {[%emt 0:00:00]} Rab8 {[%emt 0:00:00]} 17. Qc5 Qf6 {[%emt 0:00:00]} 18. d5 Ne7 {[%emt 0:02:00]} 19. e4 {[%emt 0:03:30] [#] Strongly threatening e5.} Bxf3 {[%emt 0:00:00]} 20. Bxf3 {[%emt 0:00:00]} Rd7 {[%emt 0:00:00] A mistake that costs the game.} ({Better is} 20... c6 $14) 21. Bg4 $18 {[%cal Bf3g4,Bg4h3,Bh3e6][%mdl 32]} b6 {[%emt 0:00:00]} (21... Rdd8 $142 22. Qxc7 b5) 22. Qe3 {[%emt 0:00:00]} ({Not} 22. Bxd7 bxc5 23. Rxb8+ Kh7 $16) 22... Rdd8 23. Rxc7 {[%emt 0:00:00]} Qe5 {[%emt 0:00:00]} 24. Rbc1 f5 {[%emt 0:00:00]} 25. Bh3 fxe4 $2 {[%emt 0:00:00] [#]} (25... Re8 26. Qg3 Qxg3 27. hxg3 Rbd8) 26. Be6+ {[%emt 0:00:00]} Kh8 {[%emt 0:00:00] Weighted Error Value: White=0.10 (very precise) /Black=0.49} 1-0

[Event "Charlotte Summer IM D 2022"]
[Site "Charlotte"]
[Date "2022.07.25"]
[Round "1.2"]
[White "Martin Del Campo Cardenas, Roberto Abel"]
[Black "Wen, Teddie"]
[Result "1-0"]
[ECO "B23"]
[WhiteElo "2245"]
[BlackElo "2234"]
[Annotator "TA"]
[PlyCount "100"]
[EventDate "2022.07.24"]
[EventType "tourn"]
[EventCountry "USA"]
[SourceTitle "playchess.com"]
[Source "ChessBase"]
[SourceQuality "1"]
[TimeControl "5400+30"]

{[%evp 9,100,-4,2,0,19,-29,6,7,124,112,117,127,126,91,134,123,159,163,160,153,212,56,120,110,117,121,122,121,137,155,163,90,98,58,85,53,51,54,47,63,83,77,77,67,70,66,120,95,96,96,170,105,221,206,320,318,326,308,539,370,374,377,322,295,302,302,290,292,293,291,320,274,268,275,275,271,384,331,925,898,867,799,1262,1340,1130,1308,1168,1325,1304,1284,1127,1154,785]} 1. e4 {[%emt 0:00:45]} c5 {[%emt 0:00:03]} 2. Nc3 {[%emt 0:01:49]} Nc6 {[%emt 0:00:27]} 3. Nge2 {[%emt 0:01:06]} g6 {[%emt 0:00:11]} 4. d3 {[%emt 0:00:39]} Bg7 {[%emt 0:00:04]} 5. Be3 {[%emt 0:03:14]} d6 {[%emt 0:00:04]} 6. Qd2 {[%emt 0:00:47] B23: Closed Sicilian: Lines without g3.} Rb8 {[%emt 0:01:12]} 7. h3 {[%emt 0:03:52] [#]} (7. d4 $142) 7... e6 $146 {[%emt 0:06:52]} ({Predecessor:} 7... Qa5 8. g4 Nd4 9. Bg2 Nxe2 10. Kxe2 b5 11. a3 e6 12. f4 Ne7 13. e5 dxe5 14. Bxc5 {1-0 (40) Rodriguez Vila,A (2492)-Shtemler,L (2199) Montevideo 2020}) 8. d4 {[%emt 0:02:29] The position is equal.} d5 {[%emt 0:03:41]} (8... b5 $1 $11) 9. exd5 $16 {[%emt 0:04:56]} (9. dxc5 d4 10. Nxd4 (10. Bf4 e5 $17) 10... Bxd4 $15) 9... exd5 {[%emt 0:16:24]} 10. Bf4 {[%emt 0:07:33]} (10. dxc5 d4 11. Bf4 dxc3 12. Qxd8+ Kxd8 $15) 10... cxd4 {[%emt 0:08:50]} 11. Nb5 {[%emt 0:01:25]} Qb6 {[%emt 0:07:04]} 12. a4 {[%emt 0:02:59] [#] aiming for Bc7.} (12. Bxb8 Qxb5 13. Bd6 (13. Nxd4 $2 Qxb2 14. Qe3+ Nge7 $19) 13... Qxb2 $15) 12... Ne5 {[%emt 0:51:38]} 13. Qb4 {[%emt 0:14:36]} Ne7 {[%emt 0:00:30]} 14. Nexd4 {[%emt 0:04:26]} Qf6 {[%emt 0:00:00]} (14... Qd8 $16) 15. Qd6 $2 {[%emt 0:23:54]} (15. Nc7+ $18 Kd7 16. Ndb5) 15... Qxd6 {[%emt 0:00:00]} (15... O-O $14 16. Qxf6 (16. Qxb8 $2 Qxf4 17. Qd6 a6 $19) 16... Bxf6) 16. Nxd6+ {[%emt 0:00:07]} Kd7 {[%emt 0:00:00]} 17. N6b5 {[%emt 0:24:23]} a6 {[%emt 0:00:00]} 18. Nc3 {[%emt 0:00:00]} Ra8 {[%emt 0:00:00]} 19. O-O-O {[%emt 0:00:00]} Rd8 {[%emt 0:03:00] [#]} 20. Be2 {[%emt 0:00:00]} (20. a5 $1 $18) 20... N5c6 {[%emt 0:00:30]} 21. Be3 {[%emt 0:00:00] White is much more active. The black rooks are badly placed.} Ke8 {[%emt 0:00:00]} 22. Rhe1 {[%emt 0:02:30]} Nxd4 {[%emt 0:00:00]} 23. Bxd4 {[%emt 0:00:00]} Bxd4 {[%emt 0:00:00]} 24. Rxd4 {[%emt 0:00:00]} Be6 {[%emt 0:00:00]} 25. Bg4 {[%emt 0:00:00]} Bxg4 {[%emt 0:00:00]} 26. hxg4 {[%emt 0:00:00]} Kf8 $1 {[%emt 0:00:00]} 27. g5 {[%emt 0:00:00]} Rd7 {[%emt 0:00:00] Black is now going downhill.} (27... Rac8 $14) 28. Rh1 {[%emt 0:00:00]} Kg7 {[%emt 0:04:00]} 29. Ne4 {[%emt 0:00:00] Hoping for Nf6.} Nf5 {[%emt 0:00:00]} (29... Rc7 $16) 30. Rd3 {[%emt 0:00:00]} ({White should play} 30. Nf6 $18 Rh8 31. Rd3 (31. Rxd5 Rxd5 32. Nxd5 Nd4 $16)) 30... h5 {[%emt 0:00:00]} (30... Rdd8 $16 {keeps fighting.} 31. Nf6 h6) 31. Nf6 {[%emt 0:00:00]} Re7 {[%emt 0:00:00]} (31... Rdd8 $142 32. g4 (32. Rxd5 Rxd5 33. Nxd5 Rc8 $14) (32. Nxd5 b5 $16) 32... Nd6) 32. g4 $18 {[%emt 0:00:00]} ({Not} 32. Rxd5 Re2 $18) ({Weaker is} 32. Nxd5 Re4 $14) 32... Nd6 {[%emt 0:00:00]} 33. gxh5 {[%emt 0:00:00]} gxh5 {[%emt 0:00:00]} (33... Ne4) 34. Rxd5 {[%emt 0:00:00]} Ne4 {[%emt 0:00:00]} 35. Nxh5+ {[%emt 0:00:00]} Kg6 {[%emt 0:00:00]} 36. Nf4+ {[%emt 0:00:00]} Kg7 {[%emt 0:00:00]} 37. Nd3 {[%emt 0:00:11]} Rc8 {[%emt 0:00:37]} 38. Rh3 {[%emt 0:00:43] f3 is the strong threat.} Rec7 {[%emt 0:00:32]} 39. c3 {[%emt 0:00:07]} Rc4 {[%emt 0:00:16]} 40. a5 {[%emt 0:01:48]} Nc5 {[%emt 0:00:35]} 41. Nxc5 {[%emt 0:06:41]} ({Resist} 41. Ne5 $6 Rf4 42. Rf3 Rxf3 43. Nxf3 Ne4 $18) 41... R8xc5 {[%emt 0:00:18]} 42. Rhd3 {[%emt 0:00:00]} Rxd5 {[%emt 0:00:14]} (42... Kg6 $142 43. Kd2 Rc7) 43. Rxd5 {[%emt 0:00:00][%mdl 4096] Endgame KR-KR} Rf4 $2 {[%emt 0:00:08]} (43... Rc6 44. f4 Rc7) 44. Rd7 {[%emt 0:00:00] White is clearly winning.} Rxf2 {[%emt 0:00:15]} 45. Rxb7 {[%emt 0:00:00] Threatens to win with b4.} Rf5 {[%emt 0:05:35]} 46. b4 {[%emt 0:02:30]} Rxg5 {[%emt 0:00:30]} 47. Rb6 {[%emt 0:00:00]} f5 {[%emt 0:00:30]} 48. Rxa6 {[%emt 0:00:00]} f4 {[%emt 0:00:00]} 49. Kd1 {[%emt 0:00:00]} Re5 {[%emt 0:00:00]} 50. Rd6 {[%emt 0:00:00]} f3 {[%emt 0:00:00] Weighted Error Value: White=0.27 (precise) /Black=0.35} 1-0

[Event "Charlotte Summer IM D 2022"]
[Site "Charlotte"]
[Date "2022.07.25"]
[Round "1.3"]
[White "Canty, James"]
[Black "Leyva Rivera, Yunier"]
[Result "1/2-1/2"]
[ECO "B67"]
[WhiteElo "2175"]
[BlackElo "2379"]
[Annotator "TA"]
[PlyCount "99"]
[EventDate "2022.07.24"]
[EventType "tourn"]
[EventCountry "USA"]
[SourceTitle "playchess.com"]
[Source "ChessBase"]
[SourceQuality "1"]
[TimeControl "5400+30"]

{[%evp 16,99,42,27,28,40,39,37,33,16,37,0,0,-35,-33,-50,-13,-42,37,-27,0,-40,0,0,0,-18,0,7,6,5,64,42,54,25,21,29,34,34,17,18,25,27,34,-56,-51,-56,-63,-52,-72,-256,-22,-19,-14,-10,-22,-283,-225,-259,-254,-370,0,0,0,0,72,-34,-27,-27,-29,-107,-110,-108,-23,-29,-27,-16,-33,-158,-160,-145,-137,-122,-8,-95,0,8]} 1. e4 {[%emt 0:02:50]} c5 {[%emt 0:01:10]} 2. Nf3 {[%emt 0:00:07]} d6 {[%emt 0:01:14]} 3. d4 {[%emt 0:00:06]} cxd4 {[%emt 0:00:10]} 4. Nxd4 {[%emt 0:00:06]} Nf6 {[%emt 0:00:22]} 5. Nc3 {[%emt 0:00:04]} Nc6 {[%emt 0:00:25]} 6. Bg5 {[%emt 0:00:08]} e6 {[%emt 0:00:14]} 7. Qd2 {[%emt 0:00:18]} a6 {[%emt 0:00:13]} 8. O-O-O {[%emt 0:00:09]} Bd7 {[%emt 0:00:30]} 9. Kb1 {[%emt 0:00:38]} h6 {[%emt 0:11:20] B67: Sicilian: Richter-Rauzer: 7...a6 8 0-0-0 Bd7, lines without 9 f4 Be7.} 10. Be3 {[%emt 0:01:01]} Be7 {[%emt 0:01:30]} 11. f3 {[%emt 0:00:14]} h5 {[%emt 0:00:18] Prevents g4. White is slightly better.} 12. Be2 {[%emt 0:00:44]} Qc7 {[%emt 0:00:42] [#]} 13. Qe1 $146 {[%emt 0:04:08]} ({Predecessor:} 13. Bd3 Ne5 14. h3 b5 15. g4 Nxd3 16. Qxd3 b4 17. Nce2 Rc8 18. g5 {½-½ (32) Kotyurgin,I (2226)-Cipressi,N (2250) ICCF email 2018}) 13... b5 {[%emt 0:09:00]} 14. Bd3 {[%emt 0:05:11]} Ne5 {[%emt 0:16:40]} 15. Nce2 {[%emt 0:22:20]} Qb7 {[%emt 0:19:13]} 16. h3 {[%emt 0:07:00]} h4 {[%emt 0:15:14]} ({Black should play} 16... Nxd3 $15 17. Rxd3 a5) 17. Nc1 {[%emt 0:12:07]} ({White should try} 17. Bg5 $14) 17... b4 {[%emt 0:07:59]} 18. Be2 {[%emt 0:07:12]} d5 {[%emt 0:03:09]} 19. Bf4 {[%emt 0:05:32]} Ng6 {[%emt 0:00:19]} 20. Bh2 {[%emt 0:00:30]} a5 {[%emt 0:05:39]} 21. exd5 {[%emt 0:03:09]} Nxd5 {[%emt 0:00:54]} 22. Bd3 {[%emt 0:00:06][%cal Be2d3,Bd3e4,Be4d5][%mdl 32]} Rh6 {[%emt 0:02:43]} (22... Qb6 $11) 23. Be4 $14 {[%emt 0:01:54][%cal Of3f4]} Kf8 {[%emt 0:00:01]} 24. f4 {[%emt 0:26:56] aiming for Rf1.} Re8 {[%emt 0:01:52]} 25. f5 {[%emt 0:00:00]} exf5 {[%emt 0:00:21]} 26. Nxf5 {[%emt 0:00:00]} Bxf5 {[%emt 0:01:33]} 27. Bxd5 {[%emt 0:00:00]} (27. Bxf5 Bc5 28. Qd2 Nc3+ $1 {[%mdl 512]} 29. Ka1 Nxd1 30. Rxd1 Be3 $17) 27... Qc8 {[%emt 0:00:12]} 28. Qf2 {[%emt 0:00:00] And now Rhf1 would win.} Bc5 {[%emt 0:00:14]} 29. Qf1 {[%emt 0:00:00]} (29. Qf3 $1 $14 Bb6 30. Bb3) 29... Ne5 $40 {[%emt 0:00:36][%mdl 128] Black is up to no good.} 30. Bb3 {[%emt 0:00:00]} Rf6 $1 {[%emt 0:01:11][%cal Of5c2]} 31. Qb5 {[%emt 0:00:00]} Bd7 $1 {[%emt 0:00:12]} 32. Qe2 {[%emt 0:00:00] [#]} (32. Rxd7 $17 Nxd7 33. Rd1) 32... a4 $2 {[%emt 0:00:48]} (32... Ng4 $1 $19 {[%mdl 512]} 33. Qc4 Ne3 34. Qxh4 a4) 33. Bxe5 $11 {[%emt 0:00:00]} axb3 {[%emt 0:00:01]} 34. Nxb3 {[%emt 0:00:00][%cal Od1d7]} Bb6 {[%emt 0:00:58] Threatens to win with ...Bf5. A strong pair of Bishops.} 35. Rhe1 $2 {[%emt 0:00:00][%mdl 8192]} (35. Rd2 $11 {and White has nothing to worry.}) 35... Rf2 {[%emt 0:00:26]} 36. Qe4 {[%emt 0:00:00] Qh7 is the strong threat.} Kg8 {[%emt 0:00:13] Against Qh7+} 37. Ka1 {[%emt 0:00:39]} (37. Nd4 $142 Bxd4 38. Qxd4 Rxc2 39. Qxh4 (39. Qxd7 $2 Rc1+ 40. Rxc1 Qxd7 $19) 39... Rxg2 40. Ka1) 37... Qxc2 $2 {[%emt 0:00:20]} 38. Qxc2 {[%emt 0:00:35] Really sharp!} Rxc2 {[%emt 0:00:02]} 39. Rxd7 {[%emt 0:00:10]} Bf2 {[%emt 0:00:21]} (39... Rxg2 $11 40. Nc1 Bf2) 40. Rc1 {[%emt 0:03:09]} (40. Kb1 $16 Bxe1 41. Kxc2 Rxe5 42. Rd4) 40... Rxc1+ $15 {[%emt 0:00:13]} 41. Nxc1 {[%emt 0:00:02]} Rxe5 {[%emt 0:00:06][%mdl 4096] Endgame KRB-KRN} 42. Nd3 {[%emt 0:00:35]} (42. Kb1 $11 {keeps the balance.}) 42... Re2 $17 {[%emt 0:00:17]} 43. Kb1 {[%emt 0:01:03]} Bg3 {[%emt 0:02:23]} (43... Bg1 $1 $17 {Hoping for ...g5.} 44. Rd8+ Kh7) 44. Nxb4 $11 {[%emt 0:00:07]} Rxg2 {[%emt 0:00:03]} 45. a4 {[%emt 0:00:05] Black must now prevent a5.} g5 {[%emt 0:00:19]} 46. a5 {[%emt 0:01:24]} (46. Rd5 $1 $15 Bf2 47. Nd3) 46... g4 $1 $17 {[%emt 0:00:22]} 47. a6 {[%emt 0:00:04]} (47. hxg4 $2 h3 48. Rd5 Rg1+ 49. Ka2 h2 $19) 47... Bf2 {[%emt 0:00:47]} 48. Nd3 {[%emt 0:01:25]} (48. a7 $2 Bxa7 $1 {[%mdl 512]} 49. hxg4 h3 $1 $19) 48... Bg1 {[%emt 0:00:55]} (48... Bb6 $17 49. Rd8+ (49. a7 $2 Bxa7 50. Rxa7 gxh3 $19) (49. Rb7 $2 gxh3 50. a7 Bxa7 $19) 49... Kg7) 49. Nf4 {[%emt 0:01:00] [#]} ({Avoid the trap} 49. a7 $2 Bxa7 $1 {[%mdl 512]} 50. Rxa7 gxh3 $19) (49. Rd8+ $1 $11 Kg7 50. Nf4 gxh3 51. Nxh3) 49... gxh3 {[%emt 0:00:44]} ({Better is} 49... Rf2 $1 $17 {[%cal Rf2f4]} 50. a7 Rf1+ 51. Kc2 Bxa7 52. Rxa7 Rxf4 53. hxg4 Kg7) 50. Nxh3 {[%emt 0:00:22] Weighted Error Value: White=0.45/Black=0.42} 1/2-1/2

[Event "Charlotte Summer IM D 2022"]
[Site "Charlotte"]
[Date "2022.07.25"]
[Round "1.4"]
[White "Bisiriyu-Salam, Oluwaseun"]
[Black "Oberoi, Shelev"]
[Result "1-0"]
[ECO "B41"]
[WhiteElo "1992"]
[BlackElo "2259"]
[Annotator "TA"]
[PlyCount "127"]
[EventDate "2022.07.24"]
[EventType "tourn"]
[EventCountry "USA"]
[SourceTitle "playchess.com"]
[Source "ChessBase"]
[SourceQuality "1"]
[TimeControl "5400+30"]

{[%evp 17,127,33,39,28,33,38,70,75,63,54,89,41,38,26,66,46,54,37,85,60,47,54,58,1,2,-8,-17,-12,20,0,23,-85,0,-224,-222,-179,-46,-198,-46,-69,-62,-70,-40,-67,0,-173,-167,-157,-161,-143,-137,-158,-108,-126,-115,-122,-112,-105,-116,-99,-81,-77,-89,-76,-71,-73,-70,-202,-191,-238,-197,-282,-282,-739,-739,-732,-675,-681,-572,-530,-529,-727,-680,-667,-656,-724,-745,-689,-685,-667,-655,-718,-700,-695,-673,-653,-415,-409,-402,-358,-368,-645,-636,-975,-959,-1415,-1330,-29999,-2071,-29991,1628,1428]} 1. e4 {[%emt 0:21:43]} c5 {[%emt 0:00:11]} 2. Nf3 {[%emt 0:00:13]} e6 {[%emt 0:00:15]} 3. c4 {[%emt 0:00:20]} Nc6 {[%emt 0:02:09]} 4. Nc3 {[%emt 0:00:17]} Nf6 {[%emt 0:03:40]} 5. Be2 {[%emt 0:00:45]} Qc7 {[%emt 0:04:37]} 6. O-O {[%emt 0:00:30]} a6 {[%emt 0:02:19]} 7. d4 {[%emt 0:00:30]} cxd4 {[%emt 0:01:27]} 8. Nxd4 {[%emt 0:00:05]} Bb4 {[%emt 0:01:46]} 9. Nxc6 {[%emt 0:01:23]} dxc6 {[%emt 0:03:43]} 10. Qc2 {[%emt 0:02:25] B41: Sicilian: Kan Variation: 5 c4.} Bd6 {[%emt 0:08:43]} 11. Kh1 {[%emt 0:03:05] [#]} h5 $146 {[%emt 0:07:04]} ({Predecessor:} 11... b5 12. Bg5 O-O 13. Rad1 Rd8 14. f4 e5 15. Qc1 Bb7 16. Rxd6 Qxd6 17. fxe5 Qxe5 {0-1 (43) V Gallardo,M (1872)-Sorcinelli,A (2030) FICGS email 2014}) 12. f4 {[%emt 0:01:14] Strongly threatening e5. White is slightly better.} e5 {[%emt 0:04:36][%cal Re5f4]} 13. f5 {[%emt 0:00:39]} Bc5 {[%emt 0:04:22]} 14. Rb1 {[%emt 0:08:05]} (14. Na4 $16 Bd4 15. c5) 14... Bd4 $14 {[%emt 0:09:52]} 15. b4 {[%emt 0:01:28]} b5 {[%emt 0:06:19]} 16. Bd2 {[%emt 0:05:50]} Bb7 {[%emt 0:05:43]} 17. c5 {[%emt 0:01:45]} O-O-O {[%emt 0:01:35]} (17... a5 $14) 18. Bf3 {[%emt 0:05:56]} Ng4 {[%emt 0:03:39]} 19. Nd1 {[%emt 0:00:55] Inhibits Nf2+.} Qe7 {[%emt 0:02:50][%cal Og4h2]} 20. g3 {[%emt 0:01:37]} (20. h3 $14) 20... Kb8 {[%emt 0:05:01]} 21. Kg2 {[%emt 0:03:43]} g6 {[%emt 0:03:56]} 22. h3 {[%emt 0:00:17]} gxf5 {[%emt 0:00:47]} 23. exf5 {[%emt 0:00:18]} Nf6 {[%emt 0:05:27]} 24. Bg5 {[%emt 0:00:14] [#]} (24. Nc3 $11 {remains equal.}) 24... Rdg8 {[%emt 0:06:42]} (24... e4 $1 $17 25. Be2 Rdg8) 25. Bh4 $2 {[%emt 0:02:13]} (25. Bxf6 $11 {and White stays safe.} Qxf6 26. Nc3) 25... e4 $19 {[%emt 0:01:17]} 26. Be2 {[%emt 0:00:43]} Qc7 {[%emt 0:00:31]} (26... Qe5 $19 {...Nd5 is the strong threat.} 27. Rb3 Nd5) 27. Kh2 $2 {[%emt 0:00:48]} (27. Rb3 $15) 27... e3 $2 {[%emt 0:02:11]} (27... Nd5 $19 {White must now prevent ...Bf6.} 28. Qxe4 Bf6) 28. Rf3 {[%emt 0:02:47]} Nd5 {[%emt 0:01:50][%cal Og8g4]} 29. Qe4 {[%emt 0:00:58] Prevents Rg4.} Be5 {[%emt 0:00:59]} 30. Rb3 $1 {[%emt 0:03:03]} Nf6 {[%emt 0:01:03]} (30... Re8 $15 31. Qd3 a5 32. bxa5 Qxa5) 31. Qxe3 $2 {[%emt 0:00:32] [#]} (31. Qc2 $11 {and White is okay.}) 31... Ng4+ $1 {[%emt 0:00:11][%mdl 512]} 32. hxg4 {[%emt 0:00:53]} hxg4 {[%emt 0:00:01]} 33. Rf2 {[%emt 0:08:05] aiming for Kg2.} Rxh4+ $1 {[%emt 0:00:08]} 34. Kg1 {[%emt 0:00:16]} Rh3 {[%emt 0:00:13]} (34... Rh5 $142 {Threatens to win with ...Bc8.} 35. Rh2 Rxh2 36. Kxh2 f6) 35. Rg2 $17 {[%emt 0:00:14]} Bc8 {[%emt 0:01:55]} 36. Qe4 {[%emt 0:05:10]} Rxg3 {[%emt 0:00:24]} 37. Rbxg3 {[%emt 0:00:41]} Bxg3 {[%emt 0:00:01]} 38. Bxg4 {[%emt 0:00:25]} Bd7 {[%emt 0:01:00] Hoping for ...Re8.} 39. Qf3 {[%emt 0:01:35]} Be5 {[%emt 0:00:42]} 40. Kf1 {[%emt 0:01:30]} Bc8 {[%emt 0:00:39]} 41. Re2 {[%emt 0:00:58]} f6 {[%emt 0:00:11]} 42. Rg2 {[%emt 0:02:21]} (42. Nf2 $15) 42... Qd7 $19 {[%emt 0:00:17]} 43. Nf2 {[%emt 0:02:07]} (43. Qe4 $142) 43... Rd8 {[%emt 0:01:10]} 44. Ne4 {[%emt 0:03:00]} (44. Qd1 {was worth a try.}) 44... Qd4 {[%emt 0:00:00]} 45. a3 $2 {[%emt 0:04:25]} (45. Rd2 Qc4+ 46. Qe2 Rxd2 47. Qxc4 bxc4 48. Nxd2) 45... Qa1+ {[%emt 0:00:17]} 46. Kf2 {[%emt 0:00:15]} Qb2+ {[%emt 0:00:21]} 47. Ke1 {[%emt 0:02:04]} Qc1+ {[%emt 0:00:19]} 48. Kf2 {[%emt 0:00:09]} Bd4+ {[%emt 0:00:34]} 49. Ke2 {[%emt 0:00:38]} Qc2+ {[%emt 0:00:54]} 50. Kf1 {[%emt 0:00:58]} Qb1+ {[%emt 0:00:17]} 51. Ke2 {[%emt 0:00:14]} Re8 {[%emt 0:00:51]} 52. Qf4+ {[%emt 0:00:27]} Be5 {[%emt 0:00:14]} 53. Qe3 {[%emt 0:00:16]} Bc7 {[%emt 0:00:14]} 54. Kf3 {[%emt 0:00:13]} Qf1+ {[%emt 0:01:18]} 55. Rf2 {[%emt 0:00:46]} Qh1+ {[%emt 0:00:01]} 56. Rg2 {[%emt 0:00:03]} Qd1+ {[%emt 0:01:01]} 57. Re2 {[%emt 0:00:06]} Qd5 {[%emt 0:00:31]} 58. Kf2 {[%emt 0:05:58]} Bxf5 {[%emt 0:00:16]} 59. Bf3 {[%emt 0:00:02]} (59. Bxf5 Qxf5+ 60. Qf3) 59... Qe5 {[%emt 0:00:40]} 60. Kf1 {[%emt 0:01:27]} Bh3+ {[%emt 0:00:18] A strong pair of Bishops.} 61. Ke1 {[%emt 0:00:38]} Qa1+ {[%emt 0:00:28]} 62. Kf2 {[%emt 0:00:10]} f5 {[%emt 0:00:36]} (62... Qf1# $142) 63. Qc3 {[%emt 0:00:12]} Qh1 $4 {[%emt 0:00:37][%mdl 8192]} 64. Bxh1 {[%emt 0:00:02] White used his chance.  Weighted Error Value: White=0.84/Black=0.39} 1-0